[Event "XIII Mediterranean Championship 2023"]
[Site "Castell-Platja d Aro"]
[Date "2023.11.09"]
[Round "7.13"]
[White "Garcia Jimenez, Francisco Javier"]
[Black "Rodriguez Redondo, Adhara"]
[Result "1/2-1/2"]
[ECO "C22"]
[WhiteElo "2249"]
[BlackElo "2117"]
[Annotator "RC"]
[PlyCount "132"]
[EventDate "2023.10.26"]
[EventType "swiss"]
[EventCountry "ESP"]
[SourceTitle "playchess.com"]
[Source "ChessBase"]
[SourceQuality "1"]
[TimeControl "5400+30"]

1. e4 {[%emt 0:06:26]} e5 {[%emt 0:00:04]} 2. Nc3 {[%emt 0:01:27]} Nf6 {[%emt 0:00:07]} 3. d4 {[%emt 0:00:58]} exd4 {[%emt 0:01:16]} 4. Qxd4 {[%emt 0:00:04]} Nc6 {[%emt 0:00:24]} 5. Qe3 {[%emt 0:00:37]} Bb4 {[%emt 0:01:17]} 6. Bd2 {[%emt 0:00:06]} O-O {[%emt 0:01:21]} 7. O-O-O {[%emt 0:00:08]} Re8 {[%emt 0:00:31]} 8. Bc4 {[%emt 0:00:43]} Qe7 {[%emt 0:16:00]} 9. f3 {[%emt 0:10:53]} d6 {[%emt 0:18:28]} 10. Nge2 {[%emt 0:00:19]} Be6 {[%emt 0:04:36]} 11. Bxe6 {[%emt 0:04:51]} Qxe6 {[%emt 0:01:05]} 12. Nf4 {[%emt 0:04:55]} Qc4 {[%emt 0:02:25]} 13. Kb1 {[%emt 0:05:27]} Bc5 {[%emt 0:10:09]} 14. Qd3 {[%emt 0:05:06]} Ne5 {[%emt 0:02:37]} 15. Qxc4 {[%emt 0:00:49]} Nxc4 {[%emt 0:00:05]} 16. Bc1 {[%emt 0:00:18]} Rad8 {[%emt 0:02:20]} 17. b3 {[%emt 0:04:17]} Ne5 {[%emt 0:01:45]} 18. Na4 {[%emt 0:02:21]} Bb4 {[%emt 0:02:57]} 19. Bb2 {[%emt 0:50:15]} b5 {[%emt 0:09:22]} 20. Nc3 {[%emt 0:00:00]} Rb8 {[%emt 0:03:07]} 21. Nce2 {[%emt 0:00:00]} a5 {[%emt 0:21:04]} 22. Nc1 {[%emt 0:00:00]} Bc5 {[%emt 0:00:00]} 23. Ncd3 {[%emt 0:00:00]} Nxd3 {[%emt 0:00:00]} 24. Nxd3 {[%emt 0:00:00]} Nd7 {[%emt 0:00:00]} 25. Nxc5 {[%emt 0:00:00]} Nxc5 {[%emt 0:00:00]} 26. Rd5 {[%emt 0:00:00]} f6 {[%emt 0:00:00]} 27. h4 {[%emt 0:00:00]} Nd7 {[%emt 0:00:00]} 28. h5 {[%emt 0:00:00]} h6 {[%emt 0:00:00]} 29. Rc1 {[%emt 0:00:00]} a4 {[%emt 0:01:22]} 30. Rcd1 {[%emt 0:00:00]} Nc5 {[%emt 0:01:51]} 31. Bd4 {[%emt 0:00:00]} Nd7 {[%emt 0:01:11]} 32. Kb2 {[%emt 0:00:00]} Re6 {[%emt 0:00:30]} 33. Bf2 {[%emt 0:00:00]} axb3 {[%emt 0:00:13]} 34. cxb3 {[%emt 0:00:12]} Ne5 {[%emt 0:00:31]} 35. Bg3 {[%emt 0:01:31]} Nd7 {[%emt 0:00:35]} 36. Rc1 {[%emt 0:00:18]} Rb7 {[%emt 0:00:07]} 37. Rc6 {[%emt 0:02:38]} Re8 {[%emt 0:00:25]} 38. Rd2 {[%emt 0:00:58]} Re7 {[%emt 0:01:10]} 39. Rdc2 {[%emt 0:01:16]} Nc5 {[%emt 0:00:22]} 40. Rd2 {[%emt 0:00:44]} Ne6 {[%emt 0:00:39]} 41. Ra6 {[%emt 0:00:33]} Re8 {[%emt 0:00:22]} 42. Rc6 {[%emt 0:01:08]} Re7 {[%emt 0:00:03]} 43. Rcc2 {[%emt 0:00:27]} Nc5 {[%emt 0:00:29]} 44. Bf2 {[%emt 0:00:17]} Nd7 {[%emt 0:00:25]} 45. Rd5 {[%emt 0:00:16]} Re8 {[%emt 0:00:42]} 46. Rcd2 {[%emt 0:01:19]} Kf7 {[%emt 0:00:57]} 47. Bg3 {[%emt 0:00:54]} Nc5 {[%emt 0:00:25]} 48. Rc2 {[%emt 0:00:15]} Nd7 {[%emt 0:00:22]} 49. Kc1 {[%emt 0:00:49]} Nc5 {[%emt 0:00:34]} 50. Kd1 {[%emt 0:00:18]} Na6 {[%emt 0:00:24]} 51. Be1 {[%emt 0:00:30]} Nc5 {[%emt 0:00:37]} 52. Ke2 {[%emt 0:00:34]} Ne6 {[%emt 0:00:27]} 53. Ke3 {[%emt 0:00:22]} Ng5 {[%emt 0:00:43]} 54. Ba5 {[%emt 0:00:37]} Re7 {[%emt 0:00:28]} 55. Kf2 {[%emt 0:00:33]} Ne6 {[%emt 0:00:18]} 56. Rd1 {[%emt 0:00:28]} Nf4 {[%emt 0:00:33]} 57. g4 {[%emt 0:00:31]} Ra7 {[%emt 0:00:39]} 58. Bd2 {[%emt 0:00:23]} Ne6 {[%emt 0:00:20]} 59. Be3 {[%emt 0:00:07]} Rb7 {[%emt 0:00:22]} 60. Rd5 {[%emt 0:00:12]} Re8 {[%emt 0:00:32]} 61. f4 {[%emt 0:00:31]} Ra8 {[%emt 0:00:38]} 62. Kf3 {[%emt 0:00:08]} Re8 {[%emt 0:00:40]} 63. Rf5 {[%emt 0:01:21]} Kg8 {[%emt 0:00:30]} 64. Rd5 {[%emt 0:00:31]} Kf7 {[%emt 0:00:07]} 65. Rd1 {[%emt 0:00:08]} Re7 {[%emt 0:00:29]} 66. Rd5 {[%emt 0:01:08]} Re8 1/2-1/2

[Event "XIII Mediterranean Championship 2023"]
[Site "Castell-Platja d Aro"]
[Date "2023.11.09"]
[Round "7.14"]
[White "Martin Barcelo, Carles"]
[Black "Makka, Ioulia"]
[Result "1-0"]
[ECO "C71"]
[WhiteElo "2242"]
[BlackElo "1900"]
[Annotator "RC"]
[PlyCount "75"]
[EventDate "2023.10.26"]
[EventType "swiss"]
[EventCountry "ESP"]
[SourceTitle "playchess.com"]
[Source "ChessBase"]
[SourceQuality "1"]
[TimeControl "5400+30"]

1. e4 {[%emt 0:00:33]} e5 {[%emt 0:00:28]} 2. Nf3 {[%emt 0:00:12]} Nc6 {[%emt 0:00:12]} 3. Bb5 {[%emt 0:00:18]} a6 {[%emt 0:00:20]} 4. Ba4 {[%emt 0:00:06]} d6 {[%emt 0:00:28]} 5. Nc3 {[%emt 0:00:07]} Bd7 {[%emt 0:01:03]} 6. Bxc6 {[%emt 0:01:05]} bxc6 {[%emt 0:02:53]} 7. d4 {[%emt 0:00:07]} exd4 {[%emt 0:01:12]} 8. Nxd4 {[%emt 0:05:21]} g6 {[%emt 0:01:56]} 9. Qd3 {[%emt 0:04:14]} Bg7 {[%emt 0:00:48]} 10. Bf4 {[%emt 0:02:47]} Ne7 {[%emt 0:04:49]} 11. O-O-O {[%emt 0:00:30]} h6 {[%emt 0:09:50]} 12. Rhe1 {[%emt 0:02:09]} O-O {[%emt 0:04:10]} 13. e5 {[%emt 0:03:25]} d5 {[%emt 0:02:00]} 14. Na4 {[%emt 0:01:47]} Nf5 {[%emt 0:07:54]} 15. Nc5 {[%emt 0:01:06]} Nxd4 {[%emt 0:02:29]} 16. Qxd4 {[%emt 0:00:34]} Be6 {[%emt 0:03:25]} 17. Qc3 {[%emt 0:13:09]} Qe8 {[%emt 0:07:06]} 18. Kb1 {[%emt 0:01:16]} Bf5 {[%emt 0:03:37]} 19. Nb3 {[%emt 0:02:36]} Rb8 {[%emt 0:02:42]} 20. Nd4 {[%emt 0:02:43]} Bd7 {[%emt 0:00:37]} 21. Nb3 {[%emt 0:13:04]} Kh7 {[%emt 0:08:07]} 22. Nc5 {[%emt 0:01:00]} Bc8 {[%emt 0:03:48]} 23. Nd3 {[%emt 0:04:49]} Qe6 {[%emt 0:05:11]} 24. h3 {[%emt 0:03:08]} Rd8 {[%emt 0:02:32]} 25. Be3 {[%emt 0:01:06]} Re8 {[%emt 0:05:04]} 26. Bd4 {[%emt 0:02:40]} Bf8 {[%emt 0:01:54]} 27. g4 {[%emt 0:04:45]} Bb7 {[%emt 0:08:16]} 28. f4 {[%emt 0:03:53]} Qe7 {[%emt 0:03:41]} 29. f5 {[%emt 0:06:43]} gxf5 {[%emt 0:02:08]} 30. gxf5 {[%emt 0:00:16]} Qh4 {[%emt 0:00:18]} 31. Nc5 {[%emt 0:10:42]} Bc8 {[%emt 0:01:20]} 32. e6 {[%emt 0:00:28]} Qh5 {[%emt 0:03:00]} 33. Qg3 {[%emt 0:05:56]} fxe6 {[%emt 0:01:19]} 34. Qe5 {[%emt 0:02:09]} Qxf5 {[%emt 0:01:10]} 35. Qh8+ {[%emt 0:00:17]} Kg6 {[%emt 0:00:15]} 36. Qg8+ {[%emt 0:00:18]} Kh5 {[%emt 0:00:52]} 37. Re5 {[%emt 0:00:08]} Kh4 {[%emt 0:01:23]} 38. Bf2+ {[%emt 0:00:35]} 1-0

[Event "XIII Mediterranean Championship 2023"]
[Site "Castell-Platja d Aro"]
[Date "2023.11.09"]
[Round "7.15"]
[White "Martinez Pla, Xavier"]
[Black "Garcia Paolicchi, Raul"]
[Result "1-0"]
[ECO "B28"]
[WhiteElo "2263"]
[BlackElo "2051"]
[Annotator "RC"]
[PlyCount "67"]
[EventDate "2023.10.26"]
[EventType "swiss"]
[EventCountry "ESP"]
[SourceTitle "playchess.com"]
[Source "ChessBase"]
[SourceQuality "1"]
[TimeControl "5400+30"]

1. e4 {[%emt 0:06:20]} c5 {[%emt 0:00:10]} 2. Nf3 {[%emt 0:00:24]} a6 {[%emt 0:00:17]} 3. c4 {[%emt 0:00:07]} Nc6 {[%emt 0:00:08]} 4. d4 {[%emt 0:00:08]} cxd4 {[%emt 0:00:06]} 5. Nxd4 {[%emt 0:00:05]} e5 {[%emt 0:00:19]} 6. Nf5 {[%emt 0:00:07]} d6 {[%emt 0:00:27]} 7. Ne3 {[%emt 0:03:49]} g6 {[%emt 0:03:03]} 8. Nd5 {[%emt 0:05:51]} Bh6 {[%emt 0:01:19]} 9. Nbc3 {[%emt 0:02:49]} Bxc1 {[%emt 0:04:37]} 10. Rxc1 {[%emt 0:00:19]} Nf6 {[%emt 0:02:08]} 11. g3 {[%emt 0:03:54]} Nd4 {[%emt 0:02:23]} 12. Bg2 {[%emt 0:01:52]} O-O {[%emt 0:05:52]} 13. O-O {[%emt 0:01:57]} Nxd5 {[%emt 0:03:10]} 14. Nxd5 {[%emt 0:09:27]} Be6 {[%emt 0:03:35]} 15. Ne3 {[%emt 0:00:40]} b5 {[%emt 0:03:52]} 16. Qd2 {[%emt 0:05:24]} Qb6 {[%emt 0:06:21]} 17. b3 {[%emt 0:04:35]} Rfc8 {[%emt 0:03:49]} 18. Kh1 {[%emt 0:07:27]} bxc4 {[%emt 0:04:51]} 19. bxc4 {[%emt 0:00:55]} Qd8 {[%emt 0:04:54]} 20. f4 {[%emt 0:02:01]} Bd7 {[%emt 0:14:17]} 21. Qf2 {[%emt 0:07:12]} Nc6 {[%emt 0:09:47]} 22. Rcd1 {[%emt 0:04:27]} Be8 {[%emt 0:02:48]} 23. Nd5 {[%emt 0:05:50]} Nd4 {[%emt 0:02:12]} 24. Rxd4 {[%emt 0:01:04]} exd4 {[%emt 0:00:08]} 25. Qxd4 {[%emt 0:00:03]} Rab8 {[%emt 0:02:43]} 26. Nf6+ {[%emt 0:01:37]} Kf8 {[%emt 0:00:12]} 27. Nxh7+ {[%emt 0:00:14]} Kg8 {[%emt 0:00:14]} 28. Nf6+ {[%emt 0:00:20]} Kf8 {[%emt 0:00:09]} 29. Nd5 {[%emt 0:00:37]} Kg8 {[%emt 0:00:08]} 30. f5 {[%emt 0:01:58]} gxf5 {[%emt 0:02:47]} 31. exf5 {[%emt 0:04:45]} f6 {[%emt 0:06:49]} 32. Nxf6+ {[%emt 0:01:33]} Kf8 {[%emt 0:00:36]} 33. Re1 {[%emt 0:05:30]} Bf7 {[%emt 0:03:49]} 34. Qh4 {[%emt 0:01:14]} 1-0

[Event "XIII Mediterranean Championship 2023"]
[Site "Castell-Platja d Aro"]
[Date "2023.11.09"]
[Round "7.16"]
[White "Ventura Bolet, Alexandre"]
[Black "Alonso Gimenez, Mauro"]
[Result "1-0"]
[ECO "A09"]
[WhiteElo "2238"]
[BlackElo "1978"]
[Annotator "RC"]
[PlyCount "77"]
[EventDate "2023.10.26"]
[EventType "swiss"]
[EventCountry "ESP"]
[SourceTitle "playchess.com"]
[Source "ChessBase"]
[SourceQuality "1"]
[TimeControl "5400+30"]

1. Nf3 {[%emt 0:01:35]} d5 {[%emt 0:00:07]} 2. e3 {[%emt 0:01:11]} c5 {[%emt 0:00:08]} 3. c4 {[%emt 0:00:49]} d4 {[%emt 0:00:32]} 4. exd4 {[%emt 0:00:23]} cxd4 {[%emt 0:00:04]} 5. d3 {[%emt 0:00:11]} e5 {[%emt 0:01:40]} 6. g3 {[%emt 0:02:32]} Bd6 {[%emt 0:04:28]} 7. Bg2 {[%emt 0:00:28]} Nf6 {[%emt 0:00:09]} 8. O-O {[%emt 0:01:11]} O-O {[%emt 0:00:10]} 9. Bg5 {[%emt 0:11:48]} h6 {[%emt 0:04:26]} 10. Bxf6 {[%emt 0:00:56]} Qxf6 {[%emt 0:00:29]} 11. Re1 {[%emt 0:05:17]} Bd7 {[%emt 0:03:51]} 12. Nbd2 {[%emt 0:04:14]} Bc6 {[%emt 0:00:52]} 13. a3 {[%emt 0:11:13]} a5 {[%emt 0:01:19]} 14. c5 {[%emt 0:00:31]} Bxc5 {[%emt 0:04:24]} 15. Nxe5 {[%emt 0:00:29]} Bxg2 {[%emt 0:01:21]} 16. Kxg2 {[%emt 0:00:09]} Bd6 {[%emt 0:11:08]} 17. Nef3 {[%emt 0:09:10]} Nc6 {[%emt 0:06:41]} 18. Qb3 {[%emt 0:04:35]} Rab8 {[%emt 0:04:18]} 19. Rac1 {[%emt 0:00:46]} Rfd8 {[%emt 0:02:48]} 20. Ne4 {[%emt 0:11:32]} Qe6 {[%emt 0:03:25]} 21. Qxe6 {[%emt 0:03:30]} fxe6 {[%emt 0:00:28]} 22. Nc5 {[%emt 0:00:29]} Bxc5 {[%emt 0:01:05]} 23. Rxc5 {[%emt 0:00:05]} Rd5 {[%emt 0:05:45]} 24. Rxd5 {[%emt 0:06:30]} exd5 {[%emt 0:00:07]} 25. Re6 {[%emt 0:00:23]} Rd8 {[%emt 0:01:40]} 26. Ne5 {[%emt 0:01:02]} Nxe5 {[%emt 0:01:23]} 27. Rxe5 {[%emt 0:00:04]} Kf7 {[%emt 0:00:38]} 28. f4 {[%emt 0:02:32]} Rd6 {[%emt 0:04:34]} 29. Kf3 {[%emt 0:00:51]} Kf6 {[%emt 0:01:11]} 30. h4 {[%emt 0:01:42]} a4 {[%emt 0:01:58]} 31. g4 {[%emt 0:02:27]} Rb6 {[%emt 0:12:18]} 32. g5+ {[%emt 0:01:40]} hxg5 {[%emt 0:00:36]} 33. hxg5+ {[%emt 0:00:05]} Kf7 {[%emt 0:00:04]} 34. Rxd5 {[%emt 0:01:46]} Rxb2 {[%emt 0:00:17]} 35. Rxd4 {[%emt 0:00:59]} b5 {[%emt 0:00:15]} 36. Rd7+ {[%emt 0:04:01]} Kg6 {[%emt 0:01:01]} 37. Rb7 {[%emt 0:00:37]} Rb3 {[%emt 0:01:12]} 38. Kg4 {[%emt 0:04:39]} b4 {[%emt 0:04:21]} 39. f5+ {[%emt 0:00:52]} 1-0

[Event "XIII Mediterranean Championship 2023"]
[Site "Castell-Platja d Aro"]
[Date "2023.11.09"]
[Round "7.17"]
[White "Makka, Evanthia"]
[Black "Lever, Erwan"]
[Result "0-1"]
[ECO "D04"]
[WhiteElo "2004"]
[BlackElo "2184"]
[Annotator "RC"]
[PlyCount "46"]
[EventDate "2023.10.26"]
[EventType "swiss"]
[EventCountry "ESP"]
[SourceTitle "playchess.com"]
[Source "ChessBase"]
[SourceQuality "1"]
[TimeControl "5400+30"]

1. d4 {[%emt 0:02:32]} Nf6 {[%emt 0:00:08]} 2. Nf3 {[%emt 0:00:13]} d5 {[%emt 0:00:05]} 3. e3 {[%emt 0:00:14]} g6 {[%emt 0:00:07]} 4. Bd3 {[%emt 0:01:04]} Bg7 {[%emt 0:00:07]} 5. O-O {[%emt 0:01:00]} c5 {[%emt 0:00:19]} 6. dxc5 {[%emt 0:26:51]} Qc7 {[%emt 0:00:54]} 7. a3 {[%emt 0:04:02]} a5 {[%emt 0:00:15]} 8. Nc3 {[%emt 0:07:08]} O-O {[%emt 0:00:30]} 9. e4 {[%emt 0:07:10]} dxe4 {[%emt 0:00:34]} 10. Nxe4 {[%emt 0:00:10]} Na6 {[%emt 0:02:20]} 11. Nxf6+ {[%emt 0:07:56]} Bxf6 {[%emt 0:00:13]} 12. Bh6 {[%emt 0:00:20]} Rd8 {[%emt 0:00:20]} 13. Qc1 {[%emt 0:13:12]} Nxc5 {[%emt 0:00:30]} 14. Bc4 {[%emt 0:02:57]} Na4 {[%emt 0:08:23]} 15. b3 {[%emt 0:02:33]} Nb6 {[%emt 0:02:43]} 16. Bd3 {[%emt 0:04:01]} Bxa1 {[%emt 0:01:22]} 17. Qxa1 {[%emt 0:00:06]} f6 {[%emt 0:00:05]} 18. Ng5 {[%emt 0:02:01]} Rd5 {[%emt 0:17:11]} 19. h4 {[%emt 0:03:29]} Bf5 {[%emt 0:00:52]} 20. Bxf5 {[%emt 0:04:59]} Rxf5 {[%emt 0:00:35]} 21. Ne6 {[%emt 0:00:43]} Qd6 {[%emt 0:03:57]} 22. Re1 {[%emt 0:01:24]} Re5 {[%emt 0:00:26]} 23. Bf4 {[%emt 0:05:03]} Qxe6 {[%emt 0:00:08]} 0-1

[Event "XIII Mediterranean Championship 2023"]
[Site "Castell-Platja d Aro"]
[Date "2023.11.09"]
[Round "7.18"]
[White "De Lomas Busquets, Alba"]
[Black "Pham Guerrero, Sergi"]
[Result "1/2-1/2"]
[ECO "E92"]
[WhiteElo "1873"]
[BlackElo "2072"]
[Annotator "NA RC"]
[PlyCount "85"]
[EventDate "2023.10.26"]
[EventType "swiss"]
[EventCountry "ESP"]
[SourceTitle "playchess.com"]
[Source "ChessBase"]
[SourceQuality "1"]
[TimeControl "5400+30"]

1. d4 {[%emt 0:00:11]} d6 {[%emt 0:00:51]} 2. Nf3 {[%emt 0:00:18]} Nf6 {[%emt 0:00:19]} 3. c4 {[%emt 0:01:03]} g6 {[%emt 0:00:29]} 4. Nc3 {[%emt 0:00:48]} Bg7 {[%emt 0:00:11]} 5. e4 {[%emt 0:01:16]} O-O {[%emt 0:00:12]} 6. Be2 {[%emt 0:02:15]} e5 {[%emt 0:00:48]} 7. dxe5 {[%emt 0:03:28]} dxe5 {[%emt 0:00:31]} 8. Qxd8 {[%emt 0:01:00]} Rxd8 {[%emt 0:00:07]} 9. Bg5 {[%emt 0:01:22]} Re8 {[%emt 0:02:05]} 10. O-O-O {[%emt 0:06:14]} h6 {[%emt 0:09:00]} 11. Bxf6 {[%emt 0:07:33]} Bxf6 {[%emt 0:00:18]} 12. Nb5 {[%emt 0:00:47]} Na6 {[%emt 0:04:13]} 13. Rhe1 {[%emt 0:08:18]} Be7 {[%emt 0:04:43]} 14. h3 {[%emt 0:09:52]} Bc5 {[%emt 0:04:38]} 15. Rf1 {[%emt 0:01:33]} Bb6 {[%emt 0:08:09]} 16. Nd2 {[%emt 0:08:13]} Be6 {[%emt 0:19:41]} 17. Nb3 {[%emt 0:03:36]} c6 {[%emt 0:03:02]} 18. Nc3 {[%emt 0:03:04]} Rad8 {[%emt 0:01:07]} 19. Na4 {[%emt 0:06:12]} Rxd1+ {[%emt 0:05:12]} 20. Kxd1 {[%emt 0:00:06]} Rd8+ {[%emt 0:02:18]} 21. Kc1 {[%emt 0:01:11]} Nb4 {[%emt 0:03:37]} 22. Nxb6 {[%emt 0:05:54]} axb6 {[%emt 0:00:09]} 23. a3 {[%emt 0:00:47]} Nd3+ {[%emt 0:00:18]} 24. Bxd3 {[%emt 0:01:21]} Rxd3 {[%emt 0:00:08]} 25. Nd2 {[%emt 0:00:29]} Kf8 {[%emt 0:02:04]} 26. Kc2 {[%emt 0:00:41]} Rd4 {[%emt 0:00:36]} 27. Kc3 {[%emt 0:00:56]} Ke7 {[%emt 0:00:29]} 28. Re1 {[%emt 0:00:42]} f6 {[%emt 0:05:18]} 29. b3 {[%emt 0:00:15]} g5 {[%emt 0:00:45]} 30. h4 {[%emt 0:05:09]} g4 {[%emt 0:03:44]} 31. b4 {[%emt 0:04:50]} b5 {[%emt 0:02:21]} 32. cxb5 {[%emt 0:01:51]} cxb5 {[%emt 0:00:06]} 33. Re3 {[%emt 0:01:13]} Kd6 {[%emt 0:03:58]} 34. Rd3 {[%emt 0:01:43]} Rxd3+ {[%emt 0:00:36]} 35. Kxd3 {[%emt 0:00:03]} f5 {[%emt 0:00:22]} 36. g3 {[%emt 0:01:34]} h5 {[%emt 0:01:40]} 37. Kc3 {[%emt 0:05:06]} Ke7 {[%emt 0:00:49]} 38. Kd3 {[%emt 0:00:16]} Kf6 {[%emt 0:00:30]} 39. Ke3 {[%emt 0:00:28]} Bd7 {[%emt 0:00:28]} 40. exf5 {[%emt 0:01:04]} Kxf5 {[%emt 0:01:53]} 41. Ne4 {[%emt 0:01:40]} Bc6 {[%emt 0:00:15]} 42. Nc5 {[%emt 0:00:57]} Bf3 {[%emt 0:02:53]} 43. Kd3 {[%emt 0:00:42]} 1/2-1/2

[Event "XIII Mediterranean Championship 2023"]
[Site "Castell-Platja d Aro"]
[Date "2023.11.09"]
[Round "7.19"]
[White "Andreu Lopez, Santiago"]
[Black "Guillo Longares, Cecilia"]
[Result "0-1"]
[ECO "A34"]
[WhiteElo "1834"]
[BlackElo "2065"]
[Annotator "NA RC"]
[PlyCount "82"]
[EventDate "2023.10.26"]
[EventType "swiss"]
[EventCountry "ESP"]
[SourceTitle "playchess.com"]
[Source "ChessBase"]
[SourceQuality "1"]
[TimeControl "5400+30"]

1. Nf3 {[%emt 0:01:13]} Nf6 {[%emt 0:00:18]} 2. g3 {[%emt 0:00:07]} g6 {[%emt 0:00:04]} 3. Bg2 {[%emt 1:30:40]} Bg7 {[%emt 0:00:05]} 4. O-O {[%emt 0:00:00]} O-O {[%emt 0:00:04]} 5. c4 {[%emt 0:00:00]} d5 {[%emt 0:00:32]} 6. cxd5 {[%emt 0:00:00]} Nxd5 {[%emt 0:00:06]} 7. Nc3 {[%emt 0:00:00]} c5 {[%emt 0:02:21]} 8. Qb3 {[%emt 0:00:00]} Nb6 {[%emt 0:01:35]} 9. d3 {[%emt 0:00:00]} a6 {[%emt 0:09:02]} 10. Be3 {[%emt 0:00:00]} Be6 {[%emt 0:01:30]} 11. Qc2 {[%emt 0:00:00]} Qc7 {[%emt 0:09:46]} 12. Bf4 {[%emt 0:00:00]} Qc8 {[%emt 0:00:53]} 13. Ng5 {[%emt 0:00:00]} Nc6 {[%emt 0:03:17]} 14. Nxe6 {[%emt 0:00:00]} Qxe6 {[%emt 0:00:21]} 15. Ne4 {[%emt 0:00:00]} Nd4 {[%emt 0:02:55]} 16. Qd2 {[%emt 0:00:00]} Rac8 {[%emt 0:02:26]} 17. Nc3 {[%emt 0:00:00]} Qd7 {[%emt 0:03:07]} 18. Rac1 {[%emt 0:00:00]} Rfd8 {[%emt 0:07:33]} 19. b3 {[%emt 0:00:00]} e6 {[%emt 0:05:25]} 20. Ne4 {[%emt 0:00:00]} Qe7 {[%emt 0:00:28]} 21. Rfe1 {[%emt 0:00:00]} Nd5 {[%emt 0:04:05]} 22. Bh6 {[%emt 0:00:00]} Bh8 {[%emt 0:00:32]} 23. Bh3 {[%emt 0:00:00]} b6 {[%emt 0:05:17]} 24. Ng5 {[%emt 0:00:00]} Nf5 {[%emt 0:08:25]} 25. Bxf5 {[%emt 0:00:00]} exf5 {[%emt 0:00:11]} 26. e4 {[%emt 0:00:00]} fxe4 {[%emt 0:01:24]} 27. Rxe4 {[%emt 0:00:00]} Qd7 {[%emt 0:01:00]} 28. Re2 {[%emt 0:00:00]} Re8 {[%emt 0:09:52]} 29. Ne4 {[%emt 0:00:00]} Re6 {[%emt 0:06:03]} 30. Ng5 {[%emt 0:00:00]} Rxe2 {[%emt 0:00:21]} 31. Qxe2 {[%emt 0:00:00]} Re8 {[%emt 0:00:06]} 32. Qf3 {[%emt 0:00:00]} Nc3 {[%emt 0:03:22]} 33. Rc2 {[%emt 0:00:00]} Qd5 {[%emt 0:03:21]} 34. Qxd5 {[%emt 0:00:00]} Nxd5 {[%emt 0:00:01]} 35. Ne4 {[%emt 0:00:00]} f5 {[%emt 0:01:37]} 36. Nd6 {[%emt 0:00:00]} Re1+ {[%emt 0:00:15]} 37. Kg2 {[%emt 0:00:00]} Nb4 {[%emt 0:00:06]} 38. Rc4 {[%emt 0:00:00]} Re6 {[%emt 0:03:18]} 39. Nc8 {[%emt 0:01:11]} Bf6 {[%emt 0:01:40]} 40. Be3 {[%emt 0:01:08]} Nxd3 {[%emt 0:00:30]} 41. a4 {[%emt 0:00:13]} Rc6 {[%emt 0:00:17]} 0-1

[Event "XIII Mediterranean Championship 2023"]
[Site "Castell-Platja d Aro"]
[Date "2023.11.09"]
[Round "7.20"]
[White "Zvereva, Marija"]
[Black "Menac Comas, Joan Ramon"]
[Result "0-1"]
[ECO "B27"]
[WhiteElo "2144"]
[BlackElo "2044"]
[Annotator "RC"]
[PlyCount "62"]
[EventDate "2023.10.26"]
[EventType "swiss"]
[EventCountry "ESP"]
[SourceTitle "playchess.com"]
[Source "ChessBase"]
[SourceQuality "1"]
[TimeControl "5400+30"]

1. e4 {[%emt 0:01:34]} c5 {[%emt 0:00:08]} 2. Nf3 {[%emt 0:00:20]} g6 {[%emt 0:00:06]} 3. d4 {[%emt 0:00:29]} cxd4 {[%emt 0:00:07]} 4. Qxd4 {[%emt 0:00:10]} Nf6 {[%emt 0:00:05]} 5. Nc3 {[%emt 0:00:13]} Nc6 {[%emt 0:00:09]} 6. Qa4 {[%emt 0:00:39]} d6 {[%emt 0:00:16]} 7. e5 {[%emt 0:00:24]} dxe5 {[%emt 0:00:08]} 8. Nxe5 {[%emt 0:00:19]} Bg7 {[%emt 0:00:06]} 9. Bb5 {[%emt 0:08:38]} O-O {[%emt 0:00:08]} 10. Nxc6 {[%emt 0:01:47]} bxc6 {[%emt 0:00:10]} 11. Bxc6 {[%emt 0:00:16]} Rb8 {[%emt 0:00:05]} 12. O-O {[%emt 0:00:54]} Qc7 {[%emt 0:00:38]} 13. Bf3 {[%emt 0:10:44]} Bd7 {[%emt 0:03:12]} 14. Qh4 {[%emt 0:00:41]} Bf5 {[%emt 0:03:34]} 15. Re1 {[%emt 0:04:39]} Bxc2 {[%emt 0:02:30]} 16. Bf4 {[%emt 0:01:30]} Qc4 {[%emt 0:00:20]} 17. Nd1 {[%emt 0:29:48]} Bxd1 {[%emt 0:10:07]} 18. Raxd1 {[%emt 0:00:25]} Rb4 {[%emt 0:02:01]} 19. g3 {[%emt 0:02:00]} Qxa2 {[%emt 0:03:22]} 20. Qg5 {[%emt 0:17:10]} Rxb2 {[%emt 0:16:04]} 21. Qc5 {[%emt 0:02:15]} Rc2 {[%emt 0:28:45]} 22. Qxe7 {[%emt 0:01:06]} h5 {[%emt 0:17:19]} 23. Ra1 {[%emt 0:07:13]} Qb3 {[%emt 0:00:49]} 24. Re3 {[%emt 0:05:16]} Qb5 {[%emt 0:09:25]} 25. Qd6 {[%emt 0:01:53]} Ng4 {[%emt 0:00:48]} 26. Bxg4 {[%emt 0:00:47]} Bxa1 {[%emt 0:00:54]} 27. Bd7 {[%emt 0:00:28]} Rc1+ {[%emt 0:01:38]} 28. Kg2 {[%emt 0:01:20]} Qf1+ {[%emt 0:00:07]} 29. Kf3 {[%emt 0:00:04]} Qh1+ {[%emt 0:00:09]} 30. Ke2 {[%emt 0:00:04]} Re1+ {[%emt 0:00:25]} 31. Kd2 {[%emt 0:00:22]} Rd1+ {[%emt 0:00:09]} 0-1